{"text_format":"3","workbook":"xlsx","n_sheets":2,"sheets":["DÉBUT","BUDGET PERSONNEL"],"not_rendered":{"defined_names":2},"read":"whole","date_system":"1900"}

{"sheet":"DÉBUT","index":0,"n_rows":7,"n_cols":2,"rows_kept":7}
[null,"À propos du modèle"]
[null,"Utilisez ce modèle pour gérer votre budget mensuel et annuel."]
[null,"Entrez les recettes et les dépenses dans les tableaux correspondants afin de calculer le déficit ou l’excédent de trésorerie pour chaque mois et chaque année."]
[null,"Les graphiques sparkline sont automatiquement mis à jour dans chaque tableau."]
[null,"Remarque : "]
[null,"Des instructions supplémentaires sont disponibles dans la colonne A de la feuille de calcul BUDGET PERSONNEL. Ce texte a été intentionnellement masqué. Pour supprimer le texte, sélectionnez la colonne A et choisissez SUPPRIMER. Pour afficher le texte, sélectionnez la colonne A et changez la couleur de la police."]
[null,"Pour en savoir plus sur les tableaux, appuyez sur MAJ, puis sur F10 au sein d’un tableau, et sélectionnez les options TABLE et TEXTE DE REMPLACEMENT."]

{"sheet":"BUDGET PERSONNEL","index":1,"n_rows":107,"n_cols":17,"rows_kept":107,"merged":[[1,1,1,3],[1,4,1,15],[27,2,27,16],[36,2,36,16],[43,2,43,16],[53,2,53,16],[62,2,62,16],[69,2,69,16],[79,2,79,16],[87,2,87,16],[95,2,95,16],[103,2,103,16]]}
["Créez un budget personnel simple dans cette feuille de calcul. Des instructions utiles sur l’utilisation de cette feuille de calcul sont disponibles dans les cellules de cette colonne. Appuyez sur la flèche Bas pour commencer."]
["Le titre de cette feuille de calcul se trouve dans la cellule de droite. Entrez l’année dans la cellule Q2. L’instruction suivante figure dans la cellule A4.","BUDGET PERSONNEL",{"$nulls":14},{"$f":"YEAR(TODAY())","v":2019}]
[]
["Les cellules C4 à P4 contiennent des étiquettes.",null,"RECETTES","JAN","FÉV","MAR","AVR","MAI","JUIN","JUIL","AOÛ","SEPT","OCT","NOV","DÉC","ANNÉE"]
["Entrez les détails dans le tableau Revenus, qui commence à la cellule C5. L’instruction suivante figure dans la cellule A11.",null,"REVENUS","Janvier","Février","Mars","Avril","Mai","Juin","Juillet","Août","Septembre","Octobre","Novembre","Décembre","Année","Graphique sparkline"]
[null,null,"Salaires",{"v":2600,"d":"2,600.00 €"},{"v":2600,"d":"2,600.00 €"},{"v":2600,"d":"2,600.00 €"},{"$nulls":9},{"$f":"SUM(Revenus[[#This Row],[Janvier]:[Décembre]])","v":{"v":7800,"d":"7,800.00 €"}}]
[null,null,"Intérêts/Dividendes",{"v":649,"d":"649.00 €"},{"v":313,"d":"313.00 €"},{"v":664,"d":"664.00 €"},{"$nulls":9},{"$f":"SUM(Revenus[[#This Row],[Janvier]:[Décembre]])","v":{"v":1626,"d":"1,626.00 €"}}]
[null,null,"Divers",{"v":474,"d":"474.00 €"},{"v":643,"d":"643.00 €"},{"v":380,"d":"380.00 €"},{"$nulls":9},{"$f":"SUM(Revenus[[#This Row],[Janvier]:[Décembre]])","v":{"v":1497,"d":"1,497.00 €"}}]
[null,null,"Total",{"$f":"SUBTOTAL(109,Revenus[Janvier])","v":{"v":3723,"d":"3,723.00 €"}},{"$f":"SUBTOTAL(109,Revenus[Février])","v":{"v":3556,"d":"3,556.00 €"}},{"$f":"SUBTOTAL(109,Revenus[Mars])","v":{"v":3644,"d":"3,644.00 €"}},{"$f":"SUBTOTAL(109,Revenus[Avril])","v":{"v":0,"d":"0.00 €"}},{"$f":"SUBTOTAL(109,Revenus[Mai])","v":{"v":0,"d":"0.00 €"}},{"$f":"SUBTOTAL(109,Revenus[Juin])","v":{"v":0,"d":"0.00 €"}},{"$f":"SUBTOTAL(109,Revenus[Juillet])","v":{"v":0,"d":"0.00 €"}},{"$f":"SUBTOTAL(109,Revenus[Août])","v":{"v":0,"d":"0.00 €"}},{"$f":"SUBTOTAL(109,Revenus[Septembre])","v":{"v":0,"d":"0.00 €"}},{"$f":"SUBTOTAL(109,Revenus[Octobre])","v":{"v":0,"d":"0.00 €"}},{"$f":"SUBTOTAL(109,Revenus[Novembre])","v":{"v":0,"d":"0.00 €"}},{"$f":"SUBTOTAL(109,Revenus[Décembre])","v":{"v":0,"d":"0.00 €"}},{"$f":"SUBTOTAL(109,Revenus[Année])","v":{"v":10923,"d":"10,923.00 €"}}]
[]
["Les cellules C11 à P11 contiennent des étiquettes.",null,"DÉPENSES","JAN","FÉV","MAR","AVR","MAI","JUIN","JUIL","AOÛ","SEPT","OCT","NOV","DÉC","ANNÉE"]
["Entrez les dépenses du foyer dans le tableau qui commence à la cellule C12. L’instruction suivante figure dans la cellule A20.",null,"FOYER","Janvier","Février","Mars","Avril","Mai","Juin","Juillet","Août","Septembre","Octobre","Novembre","Décembre","Année","Graphique sparkline"]
[null,null,"Prêt immobilier",{"v":750,"d":"750.00 €"},{"v":750,"d":"750.00 €"},{"v":750,"d":"750.00 €"},{"$nulls":9},{"$f":"SUM(Foyer[[#This Row],[Janvier]:[Décembre]])","v":{"v":2250,"d":"2,250.00 €"}}]
[null,null,"Assurance",{"$nulls":12},{"$f":"SUM(Foyer[[#This Row],[Janvier]:[Décembre]])","v":{"v":0,"d":"0.00 €"}}]
[null,null,"Réparations",null,null,{"v":75,"d":"75.00 €"},{"$nulls":9},{"$f":"SUM(Foyer[[#This Row],[Janvier]:[Décembre]])","v":{"v":75,"d":"75.00 €"}}]
[null,null,"Services",{"v":35,"d":"35.00 €"},{"v":35,"d":"35.00 €"},{"v":35,"d":"35.00 €"},{"$nulls":9},{"$f":"SUM(Foyer[[#This Row],[Janvier]:[Décembre]])","v":{"v":105,"d":"105.00 €"}}]
[null,null,"Eau, électricité et gaz",{"v":165,"d":"165.00 €"},{"v":165,"d":"165.00 €"},{"v":165,"d":"165.00 €"},{"$nulls":9},{"$f":"SUM(Foyer[[#This Row],[Janvier]:[Décembre]])","v":{"v":495,"d":"495.00 €"}}]
[null,null,"Total",{"$f":"SUBTOTAL(109,Foyer[Janvier])","v":{"v":950,"d":"950.00 €"}},{"$f":"SUBTOTAL(109,Foyer[Février])","v":{"v":950,"d":"950.00 €"}},{"$f":"SUBTOTAL(109,Foyer[Mars])","v":{"v":1025,"d":"1,025.00 €"}},{"$f":"SUBTOTAL(109,Foyer[Avril])","v":{"v":0,"d":"0.00 €"}},{"$f":"SUBTOTAL(109,Foyer[Mai])","v":{"v":0,"d":"0.00 €"}},{"$f":"SUBTOTAL(109,Foyer[Juin])","v":{"v":0,"d":"0.00 €"}},{"$f":"SUBTOTAL(109,Foyer[Juillet])","v":{"v":0,"d":"0.00 €"}},{"$f":"SUBTOTAL(109,Foyer[Août])","v":{"v":0,"d":"0.00 €"}},{"$f":"SUBTOTAL(109,Foyer[Septembre])","v":{"v":0,"d":"0.00 €"}},{"$f":"SUBTOTAL(109,Foyer[Octobre])","v":{"v":0,"d":"0.00 €"}},{"$f":"SUBTOTAL(109,Foyer[Novembre])","v":{"v":0,"d":"0.00 €"}},{"$f":"SUBTOTAL(109,Foyer[Décembre])","v":{"v":0,"d":"0.00 €"}},{"$f":"SUBTOTAL(109,Foyer[Année])","v":{"v":2925,"d":"2,925.00 €"}}]
[]
["Entrez les dépenses quotidiennes dans le tableau qui commence à la cellule C20. L’instruction suivante figure dans la cellule A29.",null,"VIE QUOTIDIENNE","Janvier","Février","Mars","Avril","Mai","Juin","Juillet","Août","Septembre","Octobre","Novembre","Décembre","Année","Graphique sparkline"]
[null,null,"Courses ",{"v":191,"d":"191.00 €"},{"v":152,"d":"152.00 €"},{"v":145,"d":"145.00 €"},{"$nulls":9},{"$f":"SUM(Quotidien[[#This Row],[Janvier]:[Décembre]])","v":{"v":488,"d":"488.00 €"}}]
[null,null,"Garderie",{"v":200,"d":"200.00 €"},{"v":200,"d":"200.00 €"},{"v":200,"d":"200.00 €"},{"$nulls":9},{"$f":"SUM(Quotidien[[#This Row],[Janvier]:[Décembre]])","v":{"v":600,"d":"600.00 €"}}]
[null,null,"Pressing",{"v":20,"d":"20.00 €"},null,{"v":20,"d":"20.00 €"},{"$nulls":9},{"$f":"SUM(Quotidien[[#This Row],[Janvier]:[Décembre]])","v":{"v":40,"d":"40.00 €"}}]
[null,null,"Restaurant",{"v":55,"d":"55.00 €"},null,{"v":56,"d":"56.00 €"},{"$nulls":9},{"$f":"SUM(Quotidien[[#This Row],[Janvier]:[Décembre]])","v":{"v":111,"d":"111.00 €"}}]
[null,null,"Ménage",{"v":25,"d":"25.00 €"},{"v":17,"d":"17.00 €"},{"v":7,"d":"7.00 €"},{"$nulls":9},{"$f":"SUM(Quotidien[[#This Row],[Janvier]:[Décembre]])","v":{"v":49,"d":"49.00 €"}}]
[null,null,"Promeneur de chien",{"v":10,"d":"10.00 €"},{"v":5,"d":"5.00 €"},{"v":7,"d":"7.00 €"},{"$nulls":9},{"$f":"SUM(Quotidien[[#This Row],[Janvier]:[Décembre]])","v":{"v":22,"d":"22.00 €"}}]
[null,null,"Total",{"$f":"SUBTOTAL(109,Quotidien[Janvier])","v":{"v":501,"d":"501.00 €"}},{"$f":"SUBTOTAL(109,Quotidien[Février])","v":{"v":374,"d":"374.00 €"}},{"$f":"SUBTOTAL(109,Quotidien[Mars])","v":{"v":435,"d":"435.00 €"}},{"$f":"SUBTOTAL(109,Quotidien[Avril])","v":{"v":0,"d":"0.00 €"}},{"$f":"SUBTOTAL(109,Quotidien[Mai])","v":{"v":0,"d":"0.00 €"}},{"$f":"SUBTOTAL(109,Quotidien[Juin])","v":{"v":0,"d":"0.00 €"}},{"$f":"SUBTOTAL(109,Quotidien[Juillet])","v":{"v":0,"d":"0.00 €"}},{"$f":"SUBTOTAL(109,Quotidien[Août])","v":{"v":0,"d":"0.00 €"}},{"$f":"SUBTOTAL(109,Quotidien[Septembre])","v":{"v":0,"d":"0.00 €"}},{"$f":"SUBTOTAL(109,Quotidien[Octobre])","v":{"v":0,"d":"0.00 €"}},{"$f":"SUBTOTAL(109,Quotidien[Novembre])","v":{"v":0,"d":"0.00 €"}},{"$f":"SUBTOTAL(109,Quotidien[Décembre])","v":{"v":0,"d":"0.00 €"}},{"$f":"SUBTOTAL(109,Quotidien[Année])","v":{"v":1310,"d":"1,310.00 €"}}]
[]
["Entrez les dépenses de transports dans le tableau qui commence à la cellule C29. L’instruction suivante figure dans la cellule A38.",null,"TRANSPORTS","Janvier","Février","Mars","Avril","Mai","Juin","Juillet","Août","Septembre","Octobre","Novembre","Décembre","Année","Graphique sparkline"]
[null,null,"Carburant",{"v":195,"d":"195.00 €"},{"v":125,"d":"125.00 €"},{"v":171,"d":"171.00 €"},{"$nulls":9},{"$f":"SUM(Transports[[#This Row],[Janvier]:[Décembre]])","v":{"v":491,"d":"491.00 €"}}]
[null,null,"Assurance",{"v":165,"d":"165.00 €"},{"v":165,"d":"165.00 €"},{"v":165,"d":"165.00 €"},{"$nulls":9},{"$f":"SUM(Transports[[#This Row],[Janvier]:[Décembre]])","v":{"v":495,"d":"495.00 €"}}]
[null,null,"Réparations",{"$nulls":12},{"$f":"SUM(Transports[[#This Row],[Janvier]:[Décembre]])","v":{"v":0,"d":"0.00 €"}}]
[null,null,"Lavage de voiture",{"v":10,"d":"10.00 €"},{"$nulls":11},{"$f":"SUM(Transports[[#This Row],[Janvier]:[Décembre]])","v":{"v":10,"d":"10.00 €"}}]
[null,null,"Parking",{"v":10,"d":"10.00 €"},{"v":40,"d":"40.00 €"},{"v":20,"d":"20.00 €"},{"$nulls":9},{"$f":"SUM(Transports[[#This Row],[Janvier]:[Décembre]])","v":{"v":70,"d":"70.00 €"}}]
[null,null,"Transports en commun",{"v":20,"d":"20.00 €"},{"v":40,"d":"40.00 €"},{"v":30,"d":"30.00 €"},{"$nulls":9},{"$f":"SUM(Transports[[#This Row],[Janvier]:[Décembre]])","v":{"v":90,"d":"90.00 €"}}]
[null,null,"Total",{"$f":"SUBTOTAL(109,Transports[Janvier])","v":{"v":400,"d":"400.00 €"}},{"$f":"SUBTOTAL(109,Transports[Février])","v":{"v":370,"d":"370.00 €"}},{"$f":"SUBTOTAL(109,Transports[Mars])","v":{"v":386,"d":"386.00 €"}},{"$f":"SUBTOTAL(109,Transports[Avril])","v":{"v":0,"d":"0.00 €"}},{"$f":"SUBTOTAL(109,Transports[Mai])","v":{"v":0,"d":"0.00 €"}},{"$f":"SUBTOTAL(109,Transports[Juin])","v":{"v":0,"d":"0.00 €"}},{"$f":"SUBTOTAL(109,Transports[Juillet])","v":{"v":0,"d":"0.00 €"}},{"$f":"SUBTOTAL(109,Transports[Août])","v":{"v":0,"d":"0.00 €"}},{"$f":"SUBTOTAL(109,Transports[Septembre])","v":{"v":0,"d":"0.00 €"}},{"$f":"SUBTOTAL(109,Transports[Octobre])","v":{"v":0,"d":"0.00 €"}},{"$f":"SUBTOTAL(109,Transports[Novembre])","v":{"v":0,"d":"0.00 €"}},{"$f":"SUBTOTAL(109,Transports[Décembre])","v":{"v":0,"d":"0.00 €"}},{"$f":"SUBTOTAL(109,Transports[Année])","v":{"v":1156,"d":"1,156.00 €"}}]
[]
["Entrez les dépenses relatives aux loisirs dans le tableau qui commence à la cellule C38. L’instruction suivante figure dans la cellule A45.",null,"LOISIRS","Janvier","Février","Mars","Avril","Mai","Juin","Juillet","Août","Septembre","Octobre","Novembre","Décembre","Année","Graphique sparkline"]
[null,null,"Télévision par câble",{"v":85,"d":"85.00 €"},{"v":85,"d":"85.00 €"},{"v":85,"d":"85.00 €"},{"$nulls":9},{"$f":"SUM(Loisirs[[#This Row],[Janvier]:[Décembre]])","v":{"v":255,"d":"255.00 €"}}]
[null,null,"Location de vidéo/DVD",{"v":7,"d":"7.00 €"},{"v":8,"d":"8.00 €"},{"v":9,"d":"9.00 €"},{"$nulls":9},{"$f":"SUM(Loisirs[[#This Row],[Janvier]:[Décembre]])","v":{"v":24,"d":"24.00 €"}}]
[null,null,"Cinéma/Théâtre",{"v":9,"d":"9.00 €"},{"v":5,"d":"5.00 €"},{"v":9,"d":"9.00 €"},{"$nulls":9},{"$f":"SUM(Loisirs[[#This Row],[Janvier]:[Décembre]])","v":{"v":23,"d":"23.00 €"}}]
[null,null,"Concerts/Discothèque",{"v":5,"d":"5.00 €"},{"v":5,"d":"5.00 €"},{"v":7,"d":"7.00 €"},{"$nulls":9},{"$f":"SUM(Loisirs[[#This Row],[Janvier]:[Décembre]])","v":{"v":17,"d":"17.00 €"}}]
[null,null,"Total",{"$f":"SUBTOTAL(109,Loisirs[Janvier])","v":{"v":106,"d":"106.00 €"}},{"$f":"SUBTOTAL(109,Loisirs[Février])","v":{"v":103,"d":"103.00 €"}},{"$f":"SUBTOTAL(109,Loisirs[Mars])","v":{"v":110,"d":"110.00 €"}},{"$f":"SUBTOTAL(109,Loisirs[Avril])","v":{"v":0,"d":"0.00 €"}},{"$f":"SUBTOTAL(109,Loisirs[Mai])","v":{"v":0,"d":"0.00 €"}},{"$f":"SUBTOTAL(109,Loisirs[Juin])","v":{"v":0,"d":"0.00 €"}},{"$f":"SUBTOTAL(109,Loisirs[Juillet])","v":{"v":0,"d":"0.00 €"}},{"$f":"SUBTOTAL(109,Loisirs[Août])","v":{"v":0,"d":"0.00 €"}},{"$f":"SUBTOTAL(109,Loisirs[Septembre])","v":{"v":0,"d":"0.00 €"}},{"$f":"SUBTOTAL(109,Loisirs[Octobre])","v":{"v":0,"d":"0.00 €"}},{"$f":"SUBTOTAL(109,Loisirs[Novembre])","v":{"v":0,"d":"0.00 €"}},{"$f":"SUBTOTAL(109,Loisirs[Décembre])","v":{"v":0,"d":"0.00 €"}},{"$f":"SUBTOTAL(109,Loisirs[Année])","v":{"v":319,"d":"319.00 €"}}]
[]
["Entrez les dépenses relatives à la santé dans le tableau qui commence à la cellule C45. L’instruction suivante figure dans la cellule A55.",null,"SANTÉ","Janvier","Février","Mars","Avril","Mai","Juin","Juillet","Août","Septembre","Octobre","Novembre","Décembre","Année","Graphique sparkline"]
[null,null,"Cotisation club de sport",{"v":50,"d":"50.00 €"},{"v":50,"d":"50.00 €"},{"v":50,"d":"50.00 €"},{"$nulls":9},{"$f":"SUM(Santé[[#This Row],[Janvier]:[Décembre]])","v":{"v":150,"d":"150.00 €"}}]
[null,null,"Assurance",{"v":225,"d":"225.00 €"},{"v":225,"d":"225.00 €"},{"v":225,"d":"225.00 €"},{"$nulls":9},{"$f":"SUM(Santé[[#This Row],[Janvier]:[Décembre]])","v":{"v":675,"d":"675.00 €"}}]
[null,null,"Ordonnances",{"v":100,"d":"100.00 €"},{"v":100,"d":"100.00 €"},{"v":100,"d":"100.00 €"},{"$nulls":9},{"$f":"SUM(Santé[[#This Row],[Janvier]:[Décembre]])","v":{"v":300,"d":"300.00 €"}}]
[null,null,"Médicaments en vente libre",{"v":6,"d":"6.00 €"},{"v":2,"d":"2.00 €"},{"v":9,"d":"9.00 €"},{"$nulls":9},{"$f":"SUM(Santé[[#This Row],[Janvier]:[Décembre]])","v":{"v":17,"d":"17.00 €"}}]
[null,null,"Dépenses partiellement ou non prises en charges",{"v":20,"d":"20.00 €"},null,{"v":41,"d":"41.00 €"},{"$nulls":9},{"$f":"SUM(Santé[[#This Row],[Janvier]:[Décembre]])","v":{"v":61,"d":"61.00 €"}}]
[null,null,"Vétérinaire/soins pour animaux",{"v":4,"d":"4.00 €"},null,{"v":25,"d":"25.00 €"},{"$nulls":9},{"$f":"SUM(Santé[[#This Row],[Janvier]:[Décembre]])","v":{"v":29,"d":"29.00 €"}}]
[null,null,"Assurance vie",{"v":55,"d":"55.00 €"},{"v":55,"d":"55.00 €"},{"v":55,"d":"55.00 €"},{"$nulls":9},{"$f":"SUM(Santé[[#This Row],[Janvier]:[Décembre]])","v":{"v":165,"d":"165.00 €"}}]
[null,null,"Total",{"$f":"SUBTOTAL(109,Santé[Janvier])","v":{"v":460,"d":"460.00 €"}},{"$f":"SUBTOTAL(109,Santé[Février])","v":{"v":432,"d":"432.00 €"}},{"$f":"SUBTOTAL(109,Santé[Mars])","v":{"v":505,"d":"505.00 €"}},{"$f":"SUBTOTAL(109,Santé[Avril])","v":{"v":0,"d":"0.00 €"}},{"$f":"SUBTOTAL(109,Santé[Mai])","v":{"v":0,"d":"0.00 €"}},{"$f":"SUBTOTAL(109,Santé[Juin])","v":{"v":0,"d":"0.00 €"}},{"$f":"SUBTOTAL(109,Santé[Juillet])","v":{"v":0,"d":"0.00 €"}},{"$f":"SUBTOTAL(109,Santé[Août])","v":{"v":0,"d":"0.00 €"}},{"$f":"SUBTOTAL(109,Santé[Septembre])","v":{"v":0,"d":"0.00 €"}},{"$f":"SUBTOTAL(109,Santé[Octobre])","v":{"v":0,"d":"0.00 €"}},{"$f":"SUBTOTAL(109,Santé[Novembre])","v":{"v":0,"d":"0.00 €"}},{"$f":"SUBTOTAL(109,Santé[Décembre])","v":{"v":0,"d":"0.00 €"}},{"$f":"SUBTOTAL(109,Santé[Année])","v":{"v":1397,"d":"1,397.00 €"}}]
[]
["Entrez les dépenses relatives aux vacances dans le tableau qui commence à la cellule C55. L’instruction suivante figure dans la cellule A64.",null,"VACANCES","Janvier","Février","Mars","Avril","Mai","Juin","Juillet","Août","Septembre","Octobre","Novembre","Décembre","Année","Graphique sparkline"]
[null,null,"Avion",null,{"v":485,"d":"485.00 €"},{"$nulls":10},{"$f":"SUM(Vacances[[#This Row],[Janvier]:[Décembre]])","v":{"v":485,"d":"485.00 €"}}]
[null,null,"Hébergement",null,{"v":245,"d":"245.00 €"},{"$nulls":10},{"$f":"SUM(Vacances[[#This Row],[Janvier]:[Décembre]])","v":{"v":245,"d":"245.00 €"}}]
[null,null,"Nourriture",null,{"v":95,"d":"95.00 €"},{"$nulls":10},{"$f":"SUM(Vacances[[#This Row],[Janvier]:[Décembre]])","v":{"v":95,"d":"95.00 €"}}]
[null,null,"Souvenirs",{"$nulls":12},{"$f":"SUM(Vacances[[#This Row],[Janvier]:[Décembre]])","v":{"v":0,"d":"0.00 €"}}]
[null,null,"Chenil",{"$nulls":12},{"$f":"SUM(Vacances[[#This Row],[Janvier]:[Décembre]])","v":{"v":0,"d":"0.00 €"}}]
[null,null,"Voiture de location",null,{"v":85,"d":"85.00 €"},{"$nulls":10},{"$f":"SUM(Vacances[[#This Row],[Janvier]:[Décembre]])","v":{"v":85,"d":"85.00 €"}}]
[null,null,"Total",{"$f":"SUBTOTAL(109,Vacances[Janvier])","v":{"v":0,"d":"0.00 €"}},{"$f":"SUBTOTAL(109,Vacances[Février])","v":{"v":910,"d":"910.00 €"}},{"$f":"SUBTOTAL(109,Vacances[Mars])","v":{"v":0,"d":"0.00 €"}},{"$f":"SUBTOTAL(109,Vacances[Avril])","v":{"v":0,"d":"0.00 €"}},{"$f":"SUBTOTAL(109,Vacances[Mai])","v":{"v":0,"d":"0.00 €"}},{"$f":"SUBTOTAL(109,Vacances[Juin])","v":{"v":0,"d":"0.00 €"}},{"$f":"SUBTOTAL(109,Vacances[Juillet])","v":{"v":0,"d":"0.00 €"}},{"$f":"SUBTOTAL(109,Vacances[Août])","v":{"v":0,"d":"0.00 €"}},{"$f":"SUBTOTAL(109,Vacances[Septembre])","v":{"v":0,"d":"0.00 €"}},{"$f":"SUBTOTAL(109,Vacances[Octobre])","v":{"v":0,"d":"0.00 €"}},{"$f":"SUBTOTAL(109,Vacances[Novembre])","v":{"v":0,"d":"0.00 €"}},{"$f":"SUBTOTAL(109,Vacances[Décembre])","v":{"v":0,"d":"0.00 €"}},{"$f":"SUBTOTAL(109,Vacances[Année])","v":{"v":910,"d":"910.00 €"}}]
[]
["Entrez les dépenses relatives à la détente dans le tableau qui commence à la cellule C64. L’instruction suivante figure dans la cellule A71.",null,"DÉTENTE","Janvier","Février","Mars","Avril","Mai","Juin","Juillet","Août","Septembre","Octobre","Novembre","Décembre","Année","Graphique sparkline"]
[null,null,"Salle de sport",{"$nulls":12},{"$f":"SUM(Détente[[#This Row],[Janvier]:[Décembre]])","v":{"v":0,"d":"0.00 €"}}]
[null,null,"Équipements de sport",{"$nulls":12},{"$f":"SUM(Détente[[#This Row],[Janvier]:[Décembre]])","v":{"v":0,"d":"0.00 €"}}]
[null,null,"Cotisations de club de sport",{"$nulls":12},{"$f":"SUM(Détente[[#This Row],[Janvier]:[Décembre]])","v":{"v":0,"d":"0.00 €"}}]
[null,null,"Jouets/équipements enfants",{"v":39,"d":"39.00 €"},{"v":33,"d":"33.00 €"},{"v":40,"d":"40.00 €"},{"$nulls":9},{"$f":"SUM(Détente[[#This Row],[Janvier]:[Décembre]])","v":{"v":112,"d":"112.00 €"}}]
[null,null,"Total",{"$f":"SUBTOTAL(109,Détente[Janvier])","v":{"v":39,"d":"39.00 €"}},{"$f":"SUBTOTAL(109,Détente[Février])","v":{"v":33,"d":"33.00 €"}},{"$f":"SUBTOTAL(109,Détente[Mars])","v":{"v":40,"d":"40.00 €"}},{"$f":"SUBTOTAL(109,Détente[Avril])","v":{"v":0,"d":"0.00 €"}},{"$f":"SUBTOTAL(109,Détente[Mai])","v":{"v":0,"d":"0.00 €"}},{"$f":"SUBTOTAL(109,Détente[Juin])","v":{"v":0,"d":"0.00 €"}},{"$f":"SUBTOTAL(109,Détente[Juillet])","v":{"v":0,"d":"0.00 €"}},{"$f":"SUBTOTAL(109,Détente[Août])","v":{"v":0,"d":"0.00 €"}},{"$f":"SUBTOTAL(109,Détente[Septembre])","v":{"v":0,"d":"0.00 €"}},{"$f":"SUBTOTAL(109,Détente[Octobre])","v":{"v":0,"d":"0.00 €"}},{"$f":"SUBTOTAL(109,Détente[Novembre])","v":{"v":0,"d":"0.00 €"}},{"$f":"SUBTOTAL(109,Détente[Décembre])","v":{"v":0,"d":"0.00 €"}},{"$f":"SUBTOTAL(109,Détente[Année])","v":{"v":112,"d":"112.00 €"}}]
[]
["Entrez les dépenses relatives aux cotisations et abonnements dans le tableau qui commence à la cellule C71. L’instruction suivante figure dans la cellule A81.",null,"COTISATIONS/ABONNEMENTS","Janvier","Février","Mars","Avril","Mai","Juin","Juillet","Août","Septembre","Octobre","Novembre","Décembre","Année","Graphique sparkline"]
[null,null,"Magazines",{"$nulls":12},{"$f":"SUM(CotisationsEtAbonnements[[#This Row],[Janvier]:[Décembre]])","v":{"v":0,"d":"0.00 €"}}]
[null,null,"Journaux",{"$nulls":12},{"$f":"SUM(CotisationsEtAbonnements[[#This Row],[Janvier]:[Décembre]])","v":{"v":0,"d":"0.00 €"}}]
[null,null,"Connexion Internet",{"$nulls":12},{"$f":"SUM(CotisationsEtAbonnements[[#This Row],[Janvier]:[Décembre]])","v":{"v":0,"d":"0.00 €"}}]
[null,null,"Radio",{"$nulls":12},{"$f":"SUM(CotisationsEtAbonnements[[#This Row],[Janvier]:[Décembre]])","v":{"v":0,"d":"0.00 €"}}]
[null,null,"Télévision",{"$nulls":12},{"$f":"SUM(CotisationsEtAbonnements[[#This Row],[Janvier]:[Décembre]])","v":{"v":0,"d":"0.00 €"}}]
[null,null,"Organisations religieuses",{"v":29,"d":"29.00 €"},{"v":18,"d":"18.00 €"},{"v":17,"d":"17.00 €"},{"$nulls":9},{"$f":"SUM(CotisationsEtAbonnements[[#This Row],[Janvier]:[Décembre]])","v":{"v":64,"d":"64.00 €"}}]
[null,null,"Dons",{"$nulls":12},{"$f":"SUM(CotisationsEtAbonnements[[#This Row],[Janvier]:[Décembre]])","v":{"v":0,"d":"0.00 €"}}]
[null,null,"Total",{"$f":"SUBTOTAL(109,CotisationsEtAbonnements[Janvier])","v":{"v":29,"d":"29.00 €"}},{"$f":"SUBTOTAL(109,CotisationsEtAbonnements[Février])","v":{"v":18,"d":"18.00 €"}},{"$f":"SUBTOTAL(109,CotisationsEtAbonnements[Mars])","v":{"v":17,"d":"17.00 €"}},{"$f":"SUBTOTAL(109,CotisationsEtAbonnements[Avril])","v":{"v":0,"d":"0.00 €"}},{"$f":"SUBTOTAL(109,CotisationsEtAbonnements[Mai])","v":{"v":0,"d":"0.00 €"}},{"$f":"SUBTOTAL(109,CotisationsEtAbonnements[Juin])","v":{"v":0,"d":"0.00 €"}},{"$f":"SUBTOTAL(109,CotisationsEtAbonnements[Juillet])","v":{"v":0,"d":"0.00 €"}},{"$f":"SUBTOTAL(109,CotisationsEtAbonnements[Août])","v":{"v":0,"d":"0.00 €"}},{"$f":"SUBTOTAL(109,CotisationsEtAbonnements[Septembre])","v":{"v":0,"d":"0.00 €"}},{"$f":"SUBTOTAL(109,CotisationsEtAbonnements[Octobre])","v":{"v":0,"d":"0.00 €"}},{"$f":"SUBTOTAL(109,CotisationsEtAbonnements[Novembre])","v":{"v":0,"d":"0.00 €"}},{"$f":"SUBTOTAL(109,CotisationsEtAbonnements[Décembre])","v":{"v":0,"d":"0.00 €"}},{"$f":"SUBTOTAL(109,CotisationsEtAbonnements[Année])","v":{"v":64,"d":"64.00 €"}}]
[]
["Entrez les dépenses personnel dans le tableau qui commence à la cellule C81. L’instruction suivante figure dans la cellule A89.",null,"PERSONNEL","Janvier","Février","Mars","Avril","Mai","Juin","Juillet","Août","Septembre","Octobre","Novembre","Décembre","Année","Graphique sparkline"]
[null,null,"Habillement",null,null,{"v":29,"d":"29.00 €"},{"$nulls":9},{"$f":"SUM(Personnel[[#This Row],[Janvier]:[Décembre]])","v":{"v":29,"d":"29.00 €"}}]
[null,null,"Cadeaux",null,{"v":35,"d":"35.00 €"},{"$nulls":10},{"$f":"SUM(Personnel[[#This Row],[Janvier]:[Décembre]])","v":{"v":35,"d":"35.00 €"}}]
[null,null,"Coiffeur/barbier",{"v":25,"d":"25.00 €"},{"v":25,"d":"25.00 €"},{"v":25,"d":"25.00 €"},{"$nulls":9},{"$f":"SUM(Personnel[[#This Row],[Janvier]:[Décembre]])","v":{"v":75,"d":"75.00 €"}}]
[null,null,"Livres",{"$nulls":12},{"$f":"SUM(Personnel[[#This Row],[Janvier]:[Décembre]])","v":{"v":0,"d":"0.00 €"}}]
[null,null,"Musique (CD, etc.)",{"$nulls":12},{"$f":"SUM(Personnel[[#This Row],[Janvier]:[Décembre]])","v":{"v":0,"d":"0.00 €"}}]
[null,null,"Total",{"$f":"SUBTOTAL(109,Personnel[Janvier])","v":{"v":25,"d":"25.00 €"}},{"$f":"SUBTOTAL(109,Personnel[Février])","v":{"v":60,"d":"60.00 €"}},{"$f":"SUBTOTAL(109,Personnel[Mars])","v":{"v":54,"d":"54.00 €"}},{"$f":"SUBTOTAL(109,Personnel[Avril])","v":{"v":0,"d":"0.00 €"}},{"$f":"SUBTOTAL(109,Personnel[Mai])","v":{"v":0,"d":"0.00 €"}},{"$f":"SUBTOTAL(109,Personnel[Juin])","v":{"v":0,"d":"0.00 €"}},{"$f":"SUBTOTAL(109,Personnel[Juillet])","v":{"v":0,"d":"0.00 €"}},{"$f":"SUBTOTAL(109,Personnel[Août])","v":{"v":0,"d":"0.00 €"}},{"$f":"SUBTOTAL(109,Personnel[Septembre])","v":{"v":0,"d":"0.00 €"}},{"$f":"SUBTOTAL(109,Personnel[Octobre])","v":{"v":0,"d":"0.00 €"}},{"$f":"SUBTOTAL(109,Personnel[Novembre])","v":{"v":0,"d":"0.00 €"}},{"$f":"SUBTOTAL(109,Personnel[Décembre])","v":{"v":0,"d":"0.00 €"}},{"$f":"SUBTOTAL(109,Personnel[Année])","v":{"v":139,"d":"139.00 €"}}]
[]
["Entrez les obligations financières dans le tableau qui commence à la cellule C89. L’instruction suivante figure dans la cellule A97.",null,"OBLIGATIONS FINANCIÈRES","Janvier","Février","Mars","Avril","Mai","Juin","Juillet","Août","Septembre","Octobre","Novembre","Décembre","Année","Graphique sparkline"]
[null,null,"Épargne à long terme",{"v":25,"d":"25.00 €"},{"v":25,"d":"25.00 €"},{"v":25,"d":"25.00 €"},{"$nulls":9},{"$f":"SUM(Finances[[#This Row],[Janvier]:[Décembre]])","v":{"v":75,"d":"75.00 €"}}]
[null,null,"Retraite",{"v":45,"d":"45.00 €"},{"v":45,"d":"45.00 €"},{"v":45,"d":"45.00 €"},{"$nulls":9},{"$f":"SUM(Finances[[#This Row],[Janvier]:[Décembre]])","v":{"v":135,"d":"135.00 €"}}]
[null,null,"Paiements par carte de crédit",{"v":75,"d":"75.00 €"},{"v":75,"d":"75.00 €"},{"v":75,"d":"75.00 €"},{"$nulls":9},{"$f":"SUM(Finances[[#This Row],[Janvier]:[Décembre]])","v":{"v":225,"d":"225.00 €"}}]
[null,null,"Impôt sur le revenu",{"$nulls":12},{"$f":"SUM(Finances[[#This Row],[Janvier]:[Décembre]])","v":{"v":0,"d":"0.00 €"}}]
[null,null,"Autres obligations",{"v":32,"d":"32.00 €"},{"v":34,"d":"34.00 €"},{"v":1,"d":"1.00 €"},{"$nulls":9},{"$f":"SUM(Finances[[#This Row],[Janvier]:[Décembre]])","v":{"v":67,"d":"67.00 €"}}]
[null,null,"Total",{"$f":"SUBTOTAL(109,Finances[Janvier])","v":{"v":177,"d":"177.00 €"}},{"$f":"SUBTOTAL(109,Finances[Février])","v":{"v":179,"d":"179.00 €"}},{"$f":"SUBTOTAL(109,Finances[Mars])","v":{"v":146,"d":"146.00 €"}},{"$f":"SUBTOTAL(109,Finances[Avril])","v":{"v":0,"d":"0.00 €"}},{"$f":"SUBTOTAL(109,Finances[Mai])","v":{"v":0,"d":"0.00 €"}},{"$f":"SUBTOTAL(109,Finances[Juin])","v":{"v":0,"d":"0.00 €"}},{"$f":"SUBTOTAL(109,Finances[Juillet])","v":{"v":0,"d":"0.00 €"}},{"$f":"SUBTOTAL(109,Finances[Août])","v":{"v":0,"d":"0.00 €"}},{"$f":"SUBTOTAL(109,Finances[Septembre])","v":{"v":0,"d":"0.00 €"}},{"$f":"SUBTOTAL(109,Finances[Octobre])","v":{"v":0,"d":"0.00 €"}},{"$f":"SUBTOTAL(109,Finances[Novembre])","v":{"v":0,"d":"0.00 €"}},{"$f":"SUBTOTAL(109,Finances[Décembre])","v":{"v":0,"d":"0.00 €"}},{"$f":"SUBTOTAL(109,Finances[Année])","v":{"v":502,"d":"502.00 €"}}]
[]
["Entrez les dépenses diverses dans le tableau qui commence à la cellule C97. L’instruction suivante figure dans la cellule A105.",null,"DÉPENSES DIVERSES","Janvier","Février","Mars","Avril","Mai","Juin","Juillet","Août","Septembre","Octobre","Novembre","Décembre","Année","Graphique sparkline"]
[null,null,"Autres",{"$nulls":12},{"$f":"SUM(Divers[[#This Row],[Janvier]:[Décembre]])","v":{"v":0,"d":"0.00 €"}}]
[null,null,"Autres",{"$nulls":12},{"$f":"SUM(Divers[[#This Row],[Janvier]:[Décembre]])","v":{"v":0,"d":"0.00 €"}}]
[null,null,"Autres",{"$nulls":12},{"$f":"SUM(Divers[[#This Row],[Janvier]:[Décembre]])","v":{"v":0,"d":"0.00 €"}}]
[null,null,"Autres",{"$nulls":12},{"$f":"SUM(Divers[[#This Row],[Janvier]:[Décembre]])","v":{"v":0,"d":"0.00 €"}}]
[null,null,"Autres",{"$nulls":12},{"$f":"SUM(Divers[[#This Row],[Janvier]:[Décembre]])","v":{"v":0,"d":"0.00 €"}}]
[null,null,"Total",{"$f":"SUBTOTAL(109,Divers[Janvier])","v":{"v":0,"d":"0.00 €"}},{"$f":"SUBTOTAL(109,Divers[Février])","v":{"v":0,"d":"0.00 €"}},{"$f":"SUBTOTAL(109,Divers[Mars])","v":{"v":0,"d":"0.00 €"}},{"$f":"SUBTOTAL(109,Divers[Avril])","v":{"v":0,"d":"0.00 €"}},{"$f":"SUBTOTAL(109,Divers[Mai])","v":{"v":0,"d":"0.00 €"}},{"$f":"SUBTOTAL(109,Divers[Juin])","v":{"v":0,"d":"0.00 €"}},{"$f":"SUBTOTAL(109,Divers[Juillet])","v":{"v":0,"d":"0.00 €"}},{"$f":"SUBTOTAL(109,Divers[Août])","v":{"v":0,"d":"0.00 €"}},{"$f":"SUBTOTAL(109,Divers[Septembre])","v":{"v":0,"d":"0.00 €"}},{"$f":"SUBTOTAL(109,Divers[Octobre])","v":{"v":0,"d":"0.00 €"}},{"$f":"SUBTOTAL(109,Divers[Novembre])","v":{"v":0,"d":"0.00 €"}},{"$f":"SUBTOTAL(109,Divers[Décembre])","v":{"v":0,"d":"0.00 €"}},{"$f":"SUBTOTAL(109,Divers[Année])","v":{"v":0,"d":"0.00 €"}}]
[]
["Les totaux sont automatiquement calculés dans le tableau qui commence à la cellule C105. Les total des dépenses ainsi que le déficit ou l’excédent de trésorerie sont automatiquement calculés pour chaque mois et pour l’année entière, et les graphiques sparkline sont mis à jour.",null,"TOTAUX","JAN","FÉV","MAR","AVR","MAI","JUIN","JUIL","AOÛ","SEPT","OCT","NOV","DÉC","ANNÉE","GRAPHIQUE SPARKLINE"]
[null,null,"Total des dépenses",{"$f":"SUM(Divers[[#Totals],[Janvier]],Finances[[#Totals],[Janvier]],Personnel[[#Totals],[Janvier]],CotisationsEtAbonnements[[#Totals],[Janvier]],Détente[[#Totals],[Janvier]],Vacances[[#Totals],[Janvier]],Santé[[#Totals],[Janvier]],Loisirs[[#Totals],[Janvier]],Transports[[#Totals],[Janvier]],Quotidien[[#Totals],[Janvier]],Foyer[[#Totals],[Janvier]])","v":{"v":2687,"d":"2,687.00 €"}},{"$f":"SUM(Divers[[#Totals],[Février]],Finances[[#Totals],[Février]],Personnel[[#Totals],[Février]],CotisationsEtAbonnements[[#Totals],[Février]],Détente[[#Totals],[Février]],Vacances[[#Totals],[Février]],Santé[[#Totals],[Février]],Loisirs[[#Totals],[Février]],Transports[[#Totals],[Février]],Quotidien[[#Totals],[Février]],Foyer[[#Totals],[Février]])","v":{"v":3429,"d":"3,429.00 €"}},{"$f":"SUM(Divers[[#Totals],[Mars]],Finances[[#Totals],[Mars]],Personnel[[#Totals],[Mars]],CotisationsEtAbonnements[[#Totals],[Mars]],Détente[[#Totals],[Mars]],Vacances[[#Totals],[Mars]],Santé[[#Totals],[Mars]],Loisirs[[#Totals],[Mars]],Transports[[#Totals],[Mars]],Quotidien[[#Totals],[Mars]],Foyer[[#Totals],[Mars]])","v":{"v":2718,"d":"2,718.00 €"}},{"$f":"SUM(Divers[[#Totals],[Avril]],Finances[[#Totals],[Avril]],Personnel[[#Totals],[Avril]],CotisationsEtAbonnements[[#Totals],[Avril]],Détente[[#Totals],[Avril]],Vacances[[#Totals],[Avril]],Santé[[#Totals],[Avril]],Loisirs[[#Totals],[Avril]],Transports[[#Totals],[Avril]],Quotidien[[#Totals],[Avril]],Foyer[[#Totals],[Avril]])","v":{"v":0,"d":"0.00 €"}},{"$f":"SUM(Divers[[#Totals],[Mai]],Finances[[#Totals],[Mai]],Personnel[[#Totals],[Mai]],CotisationsEtAbonnements[[#Totals],[Mai]],Détente[[#Totals],[Mai]],Vacances[[#Totals],[Mai]],Santé[[#Totals],[Mai]],Loisirs[[#Totals],[Mai]],Transports[[#Totals],[Mai]],Quotidien[[#Totals],[Mai]],Foyer[[#Totals],[Mai]])","v":{"v":0,"d":"0.00 €"}},{"$f":"SUM(Divers[[#Totals],[Juin]],Finances[[#Totals],[Juin]],Personnel[[#Totals],[Juin]],CotisationsEtAbonnements[[#Totals],[Juin]],Détente[[#Totals],[Juin]],Vacances[[#Totals],[Juin]],Santé[[#Totals],[Juin]],Loisirs[[#Totals],[Juin]],Transports[[#Totals],[Juin]],Quotidien[[#Totals],[Juin]],Foyer[[#Totals],[Juin]])","v":{"v":0,"d":"0.00 €"}},{"$f":"SUM(Divers[[#Totals],[Juillet]],Finances[[#Totals],[Juillet]],Personnel[[#Totals],[Juillet]],CotisationsEtAbonnements[[#Totals],[Juillet]],Détente[[#Totals],[Juillet]],Vacances[[#Totals],[Juillet]],Santé[[#Totals],[Juillet]],Loisirs[[#Totals],[Juillet]],Transports[[#Totals],[Juillet]],Quotidien[[#Totals],[Juillet]],Foyer[[#Totals],[Juillet]])","v":{"v":0,"d":"0.00 €"}},{"$f":"SUM(Divers[[#Totals],[Août]],Finances[[#Totals],[Août]],Personnel[[#Totals],[Août]],CotisationsEtAbonnements[[#Totals],[Août]],Détente[[#Totals],[Août]],Vacances[[#Totals],[Août]],Santé[[#Totals],[Août]],Loisirs[[#Totals],[Août]],Transports[[#Totals],[Août]],Quotidien[[#Totals],[Août]],Foyer[[#Totals],[Août]])","v":{"v":0,"d":"0.00 €"}},{"$f":"SUM(Divers[[#Totals],[Septembre]],Finances[[#Totals],[Septembre]],Personnel[[#Totals],[Septembre]],CotisationsEtAbonnements[[#Totals],[Septembre]],Détente[[#Totals],[Septembre]],Vacances[[#Totals],[Septembre]],Santé[[#Totals],[Septembre]],Loisirs[[#Totals],[Septembre]],Transports[[#Totals],[Septembre]],Quotidien[[#Totals],[Septembre]],Foyer[[#Totals],[Septembre]])","v":{"v":0,"d":"0.00 €"}},{"$f":"SUM(Divers[[#Totals],[Octobre]],Finances[[#Totals],[Octobre]],Personnel[[#Totals],[Octobre]],CotisationsEtAbonnements[[#Totals],[Octobre]],Détente[[#Totals],[Octobre]],Vacances[[#Totals],[Octobre]],Santé[[#Totals],[Octobre]],Loisirs[[#Totals],[Octobre]],Transports[[#Totals],[Octobre]],Quotidien[[#Totals],[Octobre]],Foyer[[#Totals],[Octobre]])","v":{"v":0,"d":"0.00 €"}},{"$f":"SUM(Divers[[#Totals],[Novembre]],Finances[[#Totals],[Novembre]],Personnel[[#Totals],[Novembre]],CotisationsEtAbonnements[[#Totals],[Novembre]],Détente[[#Totals],[Novembre]],Vacances[[#Totals],[Novembre]],Santé[[#Totals],[Novembre]],Loisirs[[#Totals],[Novembre]],Transports[[#Totals],[Novembre]],Quotidien[[#Totals],[Novembre]],Foyer[[#Totals],[Novembre]])","v":{"v":0,"d":"0.00 €"}},{"$f":"SUM(Divers[[#Totals],[Décembre]],Finances[[#Totals],[Décembre]],Personnel[[#Totals],[Décembre]],CotisationsEtAbonnements[[#Totals],[Décembre]],Détente[[#Totals],[Décembre]],Vacances[[#Totals],[Décembre]],Santé[[#Totals],[Décembre]],Loisirs[[#Totals],[Décembre]],Transports[[#Totals],[Décembre]],Quotidien[[#Totals],[Décembre]],Foyer[[#Totals],[Décembre]])","v":{"v":0,"d":"0.00 €"}},{"$f":"SUM(Divers[[#Totals],[Année]],Finances[[#Totals],[Année]],Personnel[[#Totals],[Année]],CotisationsEtAbonnements[[#Totals],[Année]],Détente[[#Totals],[Année]],Vacances[[#Totals],[Année]],Santé[[#Totals],[Année]],Loisirs[[#Totals],[Année]],Transports[[#Totals],[Année]],Quotidien[[#Totals],[Année]],Foyer[[#Totals],[Année]])","v":{"v":8834,"d":"8,834.00 €"}}]
[null,null,"Déficit/excédent de trésorerie",{"$f":"Revenus[[#Totals],[Janvier]]-D106","v":{"v":1036,"d":"1,036.00 €"}},{"$f":"Revenus[[#Totals],[Février]]-E106","v":{"v":127,"d":"127.00 €"}},{"$f":"Revenus[[#Totals],[Mars]]-F106","v":{"v":926,"d":"926.00 €"}},{"$f":"Revenus[[#Totals],[Avril]]-G106","v":{"v":0,"d":"0.00 €"}},{"$f":"Revenus[[#Totals],[Mai]]-H106","v":{"v":0,"d":"0.00 €"}},{"$f":"Revenus[[#Totals],[Juin]]-I106","v":{"v":0,"d":"0.00 €"}},{"$f":"Revenus[[#Totals],[Juillet]]-J106","v":{"v":0,"d":"0.00 €"}},{"$f":"Revenus[[#Totals],[Août]]-K106","v":{"v":0,"d":"0.00 €"}},{"$f":"Revenus[[#Totals],[Septembre]]-L106","v":{"v":0,"d":"0.00 €"}},{"$f":"Revenus[[#Totals],[Octobre]]-M106","v":{"v":0,"d":"0.00 €"}},{"$f":"Revenus[[#Totals],[Novembre]]-N106","v":{"v":0,"d":"0.00 €"}},{"$f":"Revenus[[#Totals],[Décembre]]-O106","v":{"v":0,"d":"0.00 €"}},{"$f":"Revenus[[#Totals],[Année]]-P106","v":{"v":2089,"d":"2,089.00 €"}}]